[Event "MČR juniorů a juniorek v rapid šachu 2024"]
[Site "Hotel Fit Fun, Harrachov, Czech Republic"]
[Date "2024.09.21"]
[Round "1.26"]
[White "Macova Marketa"]
[Black "Siles Jan"]
[Result "0-1"]
[TimeControl "20+5"]
[WhiteFideId "23715588"]
[BlackFideId "23715405"]
[WhiteElo "1587"]
[BlackElo "1873"]

1. e4 {[%clk 00:20:08]} {[%emt 00:00:01]} c5 {[%clk 00:20:08]} {[%emt
00:00:03]} 2. Nf3 {[%clk 00:20:11]} {[%emt 00:00:01]} d6 {[%clk 00:20:07]}
{[%emt 00:00:07]} 3. d4 {[%clk 00:20:14]} {[%emt 00:00:02]} cxd4 {[%clk
00:20:11]} {[%emt 00:00:01]} 4. Nxd4 {[%clk 00:20:18]} {[%emt 00:00:01]} Nf6
{[%clk 00:20:15]} {[%emt 00:00:02]} 5. Nc3 {[%clk 00:20:20]} {[%emt 00:00:02]}
Nc6 {[%clk 00:20:19]} 6. Be3 {[%clk 00:20:13]} {[%emt 00:00:12]} Ng4 {[%clk
00:20:22]} {[%emt 00:00:02]} 7. Qd2 {[%clk 00:19:56]} {[%emt 00:00:21]} Nxe3
{[%clk 00:19:18]} {[%emt 00:01:09]} 8. Qxe3 {[%clk 00:19:59]} {[%emt 00:00:02]}
g6 {[%clk 00:19:01]} {[%emt 00:00:22]} 9. Bb5 {[%clk 00:19:56]} {[%emt
00:00:07]} Bd7 {[%clk 00:18:56]} {[%emt 00:00:10]} 10. O-O {[%clk 00:19:54]}
{[%emt 00:00:07]} Bg7 {[%clk 00:18:55]} {[%emt 00:00:07]} 11. Nxc6 {[%clk
00:19:46]} {[%emt 00:00:13]} bxc6 {[%clk 00:17:47]} {[%emt 00:01:13]} 12. Bc4
{[%clk 00:19:33]} {[%emt 00:00:18]} O-O {[%clk 00:17:21]} {[%emt 00:00:31]} 13.
Rad1 {[%clk 00:18:24]} {[%emt 00:01:14]} Qa5 {[%clk 00:17:01]} {[%emt
00:00:24]} 14. Rd3 {[%clk 00:16:54]} {[%emt 00:01:35]} Qb4 {[%clk 00:10:43]}
{[%emt 00:06:24]} 15. Bb3 {[%clk 00:16:29]} {[%emt 00:00:30]} a5 {[%clk
00:09:29]} {[%emt 00:01:19]} 16. a3 {[%clk 00:16:11]} {[%emt 00:00:23]} Qb7
{[%clk 00:09:26]} {[%emt 00:00:08]} 17. Qg5 {[%clk 00:13:00]} {[%emt 00:03:16]}
Bf6 {[%clk 00:08:47]} {[%emt 00:00:45]} 18. Qg3 {[%clk 00:12:28]} {[%emt
00:00:36]} Bxc3 {[%clk 00:06:07]} {[%emt 00:02:45]} 19. Rxc3 {[%clk 00:12:27]}
{[%emt 00:00:05]} a4 {[%clk 00:05:46]} {[%emt 00:00:27]} 20. Bc4 {[%clk
00:11:59]} {[%emt 00:00:33]} Qxb2 {[%clk 00:05:37]} {[%emt 00:00:14]} 21. Rd1
{[%clk 00:11:45]} {[%emt 00:00:19]} Bg4 {[%clk 00:04:46]} {[%emt 00:00:56]} 22.
Re1 {[%clk 00:11:13]} {[%emt 00:00:37]} Be6 {[%clk 00:03:53]} {[%emt 00:00:58]}
23. Bxe6 {[%clk 00:10:51]} {[%emt 00:00:27]} fxe6 {[%clk 00:03:57]} {[%emt
00:00:01]} 24. Rxc6 {[%clk 00:10:36]} {[%emt 00:00:20]} Rab8 {[%clk 00:02:07]}
{[%emt 00:01:55]} 25. h3 {[%clk 00:10:06]} {[%emt 00:00:34]} Qd4 {[%clk
00:01:36]} {[%emt 00:00:37]} 26. Rc7 {[%clk 00:08:57]} {[%emt 00:01:13]} Rf7
{[%clk 00:01:09]} {[%emt 00:00:32]} 27. Kh1 {[%clk 00:07:23]} {[%emt 00:01:38]}
Qb6 {[%clk 00:00:41]} {[%emt 00:00:34]} 28. Rc4 {[%clk 00:06:54]} {[%emt
00:00:34]} Rxf2 {[%clk 00:00:32]} {[%emt 00:00:13]} 29. Qh4 {[%clk 00:05:32]}
{[%emt 00:01:26]} Rbf8 {[%clk 00:00:21]} {[%emt 00:00:17]} 30. Kh2 {[%clk
00:02:54]} {[%emt 00:02:43]} d5 {[%clk 00:00:13]} {[%emt 00:00:14]} 31. exd5
{[%clk 00:02:46]} {[%emt 00:00:12]} Qd6+ {[%clk 00:00:16]} {[%emt 00:00:03]} 32.
Qg3 {[%clk 00:02:31]} {[%emt 00:00:20]} exd5 {[%clk 00:00:11]} {[%emt
00:00:09]} 33. Rxa4 {[%clk 00:01:43]} {[%emt 00:00:53]} Rxc2 {[%clk 00:00:10]}
{[%emt 00:00:07]} 34. Rd4 {[%clk 00:00:45]} {[%emt 00:01:03]} Rff2 {[%clk
00:00:10]} {[%emt 00:00:05]} 35. Qxd6 {[%clk 00:00:26]} {[%emt 00:00:23]} Rxg2+
{[%clk 00:00:13]} {[%emt 00:00:02]} 36. Kh1 {[%clk 00:00:26]} {[%emt 00:00:05]}
exd6 {[%clk 00:00:16]} {[%emt 00:00:02]} 37. Rxd5 {[%clk 00:00:24]} {[%emt
00:00:07]} Rh2+ {[%clk 00:00:17]} {[%emt 00:00:04]} 38. Kg1 {[%clk 00:00:28]}
{[%emt 00:00:01]} Rxh3 {[%clk 00:00:15]} {[%emt 00:00:07]} 39. Rxd6 {[%clk
00:00:31]} {[%emt 00:00:03]} Rg3+ {[%clk 00:00:16]} {[%emt 00:00:04]} 40. Kf1
{[%clk 00:00:34]} Rc7 {[%clk 00:00:14]} {[%emt 00:00:07]} 41. Ra1 {[%clk
00:00:21]} {[%emt 00:00:18]} Rh3 {[%clk 00:00:11]} {[%emt 00:00:08]} 42. Ke2
{[%clk 00:00:22]} {[%emt 00:00:03]} Rc2+ {[%clk 00:00:11]} {[%emt 00:00:06]} 43.
Kd1 {[%clk 00:00:24]} {[%emt 00:00:03]} Rg2 {[%clk 00:00:10]} {[%emt 00:00:06]}
44. Re6 {[%clk 00:00:25]} {[%emt 00:00:05]} Rh1+ {[%clk 00:00:13]} {[%emt
00:00:01]} 45. Re1 {[%clk 00:00:29]} {[%emt 00:00:01]} Rxe1+ {[%clk 00:00:18]}
{[%emt 00:00:01]} 46. Kxe1 {[%clk 00:00:32]} Rg1+ {[%clk 00:00:22]} 0-1



[ePGN "0.1;DGT LiveChess/2.2.6"]

[Event "MČR juniorů a juniorek v rapid šachu 2024"]
[Site "Hotel Fit Fun, Harrachov, Czech Republic"]
[Date "2024.09.21"]
[Round "1.27"]
[White "Stary Simon"]
[Black "Taborska Aneta"]
[Result "1-0"]
[TimeControl "20+5"]
[WhiteFideId "23734353"]
[BlackFideId "23733039"]
[WhiteElo "1866"]
[BlackElo "1582"]

1. e4 {[%clk 00:20:07]} {[%emt 00:00:02]} c6 {[%clk 00:20:04]} {[%emt
00:00:07]} 2. d4 {[%clk 00:20:11]} {[%emt 00:00:02]} d5 {[%clk 00:20:02]}
{[%emt 00:00:06]} 3. e5 {[%clk 00:20:14]} {[%emt 00:00:02]} Bf5 {[%clk
00:19:48]} {[%emt 00:00:19]} 4. Nf3 {[%clk 00:20:18]} {[%emt 00:00:02]} e6
{[%clk 00:19:36]} {[%emt 00:00:16]} 5. Be2 {[%clk 00:20:20]} {[%emt 00:00:03]}
Ne7 {[%clk 00:19:07]} {[%emt 00:00:33]} 6. O-O {[%clk 00:20:22]} {[%emt
00:00:03]} Nc8 {[%clk 00:18:52]} {[%emt 00:00:20]} 7. Be3 {[%clk 00:19:18]}
{[%emt 00:01:09]} Be7 {[%clk 00:18:28]} {[%emt 00:00:29]} 8. Nbd2 {[%clk
00:19:03]} {[%emt 00:00:21]} O-O {[%clk 00:18:22]} {[%emt 00:00:10]} 9. Ne1
{[%clk 00:17:09]} {[%emt 00:01:59]} Nb6 {[%clk 00:17:45]} {[%emt 00:00:41]} 10.
a4 {[%clk 00:16:48]} {[%emt 00:00:27]} a5 {[%clk 00:16:05]} {[%emt 00:01:45]}
11. g4 {[%clk 00:16:40]} {[%emt 00:00:12]} Bg6 {[%clk 00:13:46]} {[%emt
00:02:23]} 12. f4 {[%clk 00:16:44]} {[%emt 00:00:02]} f5 {[%clk 00:13:50]}
{[%emt 00:00:02]} 13. g5 {[%clk 00:16:40]} {[%emt 00:00:08]} Qc7 {[%clk
00:13:32]} {[%emt 00:00:23]} 14. Nd3 {[%clk 00:16:07]} {[%emt 00:00:38]} Nc4
{[%clk 00:12:18]} {[%emt 00:01:13]} 15. Nxc4 {[%clk 00:15:02]} {[%emt
00:01:16]} dxc4 {[%clk 00:12:21]} {[%emt 00:00:02]} 16. Nc5 {[%clk 00:14:57]}
{[%emt 00:00:10]} Bxc5 {[%clk 00:11:37]} {[%emt 00:00:49]} 17. dxc5 {[%clk
00:15:00]} {[%emt 00:00:02]} Rd8 {[%clk 00:11:18]} {[%emt 00:00:22]} 18. Qe1
{[%clk 00:15:02]} {[%emt 00:00:05]} Na6 {[%clk 00:10:58]} {[%emt 00:00:26]} 19.
Bxc4 {[%clk 00:14:53]} {[%emt 00:00:13]} Bf7 {[%clk 00:10:50]} {[%emt
00:00:11]} 20. c3 {[%clk 00:14:32]} {[%emt 00:00:29]} Qe7 {[%clk 00:10:05]}
{[%emt 00:00:48]} 21. Qf2 {[%clk 00:14:35]} {[%emt 00:00:04]} Nc7 {[%clk
00:09:57]} {[%emt 00:00:12]} 22. Rad1 {[%clk 00:13:44]} {[%emt 00:00:57]} Rxd1
{[%clk 00:09:27]} {[%emt 00:00:35]} 23. Rxd1 {[%clk 00:13:47]} {[%emt
00:00:01]} Bh5 {[%clk 00:09:19]} {[%emt 00:00:11]} 24. Rd6 {[%clk 00:13:44]}
{[%emt 00:00:10]} Rd8 {[%clk 00:09:02]} {[%emt 00:00:22]} 25. Qh4 {[%clk
00:09:58]} {[%emt 00:03:51]} Bf3 {[%clk 00:08:22]} {[%emt 00:00:44]} 26. Qg3
{[%clk 00:09:38]} {[%emt 00:00:26]} Be4 {[%clk 00:08:06]} {[%emt 00:00:20]} 27.
h4 {[%clk 00:09:25]} {[%emt 00:00:19]} Qf7 {[%clk 00:07:21]} {[%emt 00:00:49]}
28. Rxd8+ {[%clk 00:09:26]} {[%emt 00:00:05]} 1-0



[ePGN "0.1;DGT LiveChess/2.2.6"]

[Event "MČR juniorů a juniorek v rapid šachu 2024"]
[Site "Hotel Fit Fun, Harrachov, Czech Republic"]
[Date "2024.09.21"]
[Round "1.28"]
[White "Hudik Martin"]
[Black "Husa Daniel"]
[Result "0-1"]
[TimeControl "20+5"]
[WhiteFideId "23769947"]
[BlackFideId "393487"]
[WhiteElo "1572"]
[BlackElo "1866"]

1. e4 {[%clk 00:20:05]} {[%emt 00:00:03]} c5 {[%clk 00:20:08]} {[%emt
00:00:02]} 2. Nf3 {[%clk 00:20:07]} {[%emt 00:00:03]} e6 {[%clk 00:20:11]}
{[%emt 00:00:03]} 3. c4 {[%clk 00:19:13]} {[%emt 00:00:59]} Nc6 {[%clk
00:20:07]} {[%emt 00:00:09]} 4. Nc3 {[%clk 00:19:14]} {[%emt 00:00:04]} Nge7
{[%clk 00:19:32]} {[%emt 00:00:40]} 5. d4 {[%clk 00:19:10]} {[%emt 00:00:09]}
cxd4 {[%clk 00:19:26]} {[%emt 00:00:12]} 6. Nxd4 {[%clk 00:19:13]} {[%emt
00:00:01]} a6 {[%clk 00:18:53]} {[%emt 00:00:38]} 7. Be3 {[%clk 00:18:18]}
{[%emt 00:01:00]} Ng6 {[%clk 00:18:18]} {[%emt 00:00:40]} 8. Be2 {[%clk
00:17:30]} {[%emt 00:00:53]} Be7 {[%clk 00:17:02]} {[%emt 00:01:21]} 9. O-O
{[%clk 00:16:34]} {[%emt 00:01:01]} O-O {[%clk 00:16:37]} {[%emt 00:00:30]} 10.
Rc1 {[%clk 00:15:43]} {[%emt 00:00:57]} Bf6 {[%clk 00:16:01]} {[%emt 00:00:41]}
11. f4 {[%clk 00:12:40]} {[%emt 00:03:07]} d6 {[%clk 00:14:38]} {[%emt
00:01:29]} 12. Nxc6 {[%clk 00:08:40]} {[%emt 00:04:05]} bxc6 {[%clk 00:14:40]}
{[%emt 00:00:03]} 13. Qe1 {[%clk 00:07:43]} {[%emt 00:01:02]} Rb8 {[%clk
00:13:39]} {[%emt 00:01:06]} 14. b3 {[%clk 00:06:36]} {[%emt 00:01:11]} c5
{[%clk 00:12:51]} {[%emt 00:00:53]} 15. Bd3 {[%clk 00:05:18]} {[%emt 00:01:22]}
Bb7 {[%clk 00:12:16]} {[%emt 00:00:42]} 16. Nd1 {[%clk 00:02:44]} {[%emt
00:02:38]} Bc6 {[%clk 00:11:23]} {[%emt 00:00:58]} 17. Nf2 {[%clk 00:02:30]}
{[%emt 00:00:19]} Qb6 {[%clk 00:08:17]} {[%emt 00:03:10]} 18. Ng4 {[%clk
00:02:02]} {[%emt 00:00:34]} Bd4 {[%clk 00:07:40]} {[%emt 00:00:42]} 19. Bxd4
{[%clk 00:02:02]} {[%emt 00:00:06]} cxd4 {[%clk 00:07:43]} {[%emt 00:00:02]} 20.
Kh1 {[%clk 00:02:02]} {[%emt 00:00:04]} h5 {[%clk 00:07:16]} {[%emt 00:00:32]}
21. Nf2 {[%clk 00:01:35]} {[%emt 00:00:30]} Nxf4 {[%clk 00:07:09]} {[%emt
00:00:14]} 22. Bb1 {[%clk 00:01:07]} {[%emt 00:00:34]} e5 {[%clk 00:06:31]}
{[%emt 00:00:42]} 23. Nd3 {[%clk 00:01:06]} {[%emt 00:00:06]} Ne6 {[%clk
00:05:42]} {[%emt 00:00:54]} 24. Qe2 {[%clk 00:00:43]} {[%emt 00:00:28]} g6
{[%clk 00:05:31]} {[%emt 00:00:16]} 25. Rf2 {[%clk 00:00:33]} {[%emt 00:00:16]}
Ng5 {[%clk 00:04:35]} {[%emt 00:01:01]} 26. Nb2 {[%clk 00:00:12]} {[%emt
00:00:26]} Qb7 {[%clk 00:04:23]} {[%emt 00:00:16]} 27. Re1 {[%clk 00:00:13]}
{[%emt 00:00:03]} Kg7 {[%clk 00:03:48]} {[%emt 00:00:41]} 28. h4 {[%clk
00:00:17]} {[%emt 00:00:02]} Ne6 {[%clk 00:03:46]} {[%emt 00:00:06]} 29. Nd3
{[%clk 00:00:20]} {[%emt 00:00:02]} Nc5 {[%clk 00:03:42]} {[%emt 00:00:09]} 30.
Nxc5 {[%clk 00:00:14]} {[%emt 00:00:12]} dxc5 {[%clk 00:03:46]} {[%emt
00:00:01]} 31. g4 {[%clk 00:00:13]} {[%emt 00:00:05]} hxg4 {[%clk 00:03:34]}
{[%emt 00:00:17]} 32. Qxg4 {[%clk 00:00:16]} {[%emt 00:00:02]} Qd7 {[%clk
00:03:26]} {[%emt 00:00:13]} 33. Qg3 {[%clk 00:00:09]} {[%emt 00:00:13]} Qe7
{[%clk 00:02:40]} {[%emt 00:00:50]} 34. h5 {[%clk 00:00:12]} {[%emt 00:00:02]}
Rh8 {[%clk 00:02:34]} {[%emt 00:00:11]} 35. Rh2 {[%clk 00:00:15]} {[%emt
00:00:02]} Rh6 {[%clk 00:02:16]} {[%emt 00:00:23]} 36. Bd3 {[%clk 00:00:17]}
{[%emt 00:00:03]} Rbh8 {[%clk 00:02:15]} {[%emt 00:00:06]} 37. Qg4 {[%clk
00:00:18]} {[%emt 00:00:05]} Rxh5 {[%clk 00:02:12]} {[%emt 00:00:08]} 0-1



[ePGN "0.1;DGT LiveChess/2.2.6"]

[Event "MČR juniorů a juniorek v rapid šachu 2024"]
[Site "Hotel Fit Fun, Harrachov, Czech Republic"]
[Date "2024.09.21"]
[Round "1.29"]
[White "Hosova Sandra"]
[Black "Hyam Robin"]
[Result "1-0"]
[TimeControl "20+5"]
[WhiteFideId "397717"]
[BlackFideId "23773413"]
[WhiteElo "1847"]
[BlackElo "1571"]

1. d4 {[%clk 00:20:08]} {[%emt 00:00:01]} f5 {[%clk 00:20:10]} 2. Nc3 {[%clk
00:20:11]} {[%emt 00:00:02]} Nf6 {[%clk 00:20:14]} 3. Bf4 {[%clk 00:20:04]}
{[%emt 00:00:13]} e6 {[%clk 00:20:13]} {[%emt 00:00:04]} 4. e3 {[%clk
00:19:58]} {[%emt 00:00:11]} Bb4 {[%clk 00:20:16]} {[%emt 00:00:02]} 5. Nge2
{[%clk 00:19:10]} {[%emt 00:00:53]} b6 {[%clk 00:20:02]} {[%emt 00:00:20]} 6.
a3 {[%clk 00:19:10]} {[%emt 00:00:05]} Bxc3+ {[%clk 00:20:05]} {[%emt
00:00:02]} 7. Nxc3 {[%clk 00:19:10]} {[%emt 00:00:05]} Bb7 {[%clk 00:20:08]}
{[%emt 00:00:01]} 8. Be2 {[%clk 00:18:11]} {[%emt 00:01:05]} O-O {[%clk
00:19:49]} {[%emt 00:00:24]} 9. Bf3 {[%clk 00:17:50]} {[%emt 00:00:26]} Bxf3
{[%clk 00:18:06]} {[%emt 00:01:48]} 10. Qxf3 {[%clk 00:17:33]} {[%emt
00:00:22]} c6 {[%clk 00:16:20]} {[%emt 00:01:51]} 11. Bd6 {[%clk 00:13:57]}
{[%emt 00:03:40]} Rf7 {[%clk 00:15:34]} {[%emt 00:00:51]} 12. h3 {[%clk
00:13:59]} {[%emt 00:00:03]} Ne8 {[%clk 00:15:14]} {[%emt 00:00:25]} 13. Bf4
{[%clk 00:13:00]} {[%emt 00:01:05]} d5 {[%clk 00:14:23]} {[%emt 00:00:56]} 14.
g4 {[%clk 00:12:35]} {[%emt 00:00:30]} Nd6 {[%clk 00:12:49]} {[%emt 00:01:39]}
15. Rg1 {[%clk 00:11:57]} {[%emt 00:00:43]} Ne4 {[%clk 00:10:21]} {[%emt
00:02:33]} 16. Ne2 {[%clk 00:09:01]} {[%emt 00:03:01]} Nd7 {[%clk 00:07:21]}
{[%emt 00:03:05]} 17. Ng3 {[%clk 00:08:46]} {[%emt 00:00:19]} Nf8 {[%clk
00:06:29]} {[%emt 00:00:58]} 18. gxf5 {[%clk 00:05:17]} {[%emt 00:03:34]} exf5
{[%clk 00:05:24]} {[%emt 00:01:10]} 19. Qh5 {[%clk 00:05:14]} {[%emt 00:00:08]}
g6 {[%clk 00:03:33]} {[%emt 00:01:57]} 20. Nxf5 {[%clk 00:04:59]} {[%emt
00:00:20]} Rxf5 {[%clk 00:01:33]} {[%emt 00:02:04]} 21. Qxf5 {[%clk 00:05:02]}
{[%emt 00:00:02]} Qf6 {[%clk 00:01:37]} 22. Qxf6 {[%clk 00:04:39]} {[%emt
00:00:29]} Nxf6 {[%clk 00:01:41]} {[%emt 00:00:01]} 23. h4 {[%clk 00:04:26]}
{[%emt 00:00:18]} Nh5 {[%clk 00:01:45]} {[%emt 00:00:01]} 24. Bh6 {[%clk
00:04:10]} {[%emt 00:00:21]} Ne6 {[%clk 00:01:41]} {[%emt 00:00:09]} 25. Ke2
{[%clk 00:04:04]} {[%emt 00:00:11]} Nd8 {[%clk 00:01:30]} {[%emt 00:00:16]} 26.
Rac1 {[%clk 00:03:01]} {[%emt 00:01:08]} Nf7 {[%clk 00:01:30]} {[%emt
00:00:05]} 27. Bg5 {[%clk 00:03:03]} {[%emt 00:00:03]} h6 {[%clk 00:01:31]}
{[%emt 00:00:03]} 28. Be7 {[%clk 00:02:10]} {[%emt 00:00:59]} Kh7 {[%clk
00:01:18]} {[%emt 00:00:18]} 29. Bb4 {[%clk 00:02:09]} {[%emt 00:00:06]} Re8
{[%clk 00:01:15]} {[%emt 00:00:08]} 30. Kd2 {[%clk 00:01:53]} {[%emt 00:00:21]}
a5 {[%clk 00:01:06]} {[%emt 00:00:14]} 31. Bc3 {[%clk 00:01:55]} {[%emt
00:00:03]} Nf6 {[%clk 00:01:10]} 32. f3 {[%clk 00:01:50]} {[%emt 00:00:10]} Nd6
{[%clk 00:00:57]} {[%emt 00:00:19]} 33. Rce1 {[%clk 00:01:23]} {[%emt
00:00:32]} b5 {[%clk 00:00:38]} {[%emt 00:00:23]} 34. Kd3 {[%clk 00:01:15]}
{[%emt 00:00:12]} a4 {[%clk 00:00:16]} {[%emt 00:00:28]} 35. Rg2 {[%clk
00:01:09]} {[%emt 00:00:11]} Nf5 {[%clk 00:00:20]} {[%emt 00:00:02]} 36. Rh2
{[%clk 00:00:58]} {[%emt 00:00:15]} Nd7 {[%clk 00:00:09]} {[%emt 00:00:16]} 37.
e4 {[%clk 00:00:53]} {[%emt 00:00:10]} dxe4+ {[%clk 00:00:13]} {[%emt
00:00:01]} 38. fxe4 {[%clk 00:00:57]} {[%emt 00:00:01]} Ng7 {[%clk 00:00:14]}
{[%emt 00:00:04]} 39. Rg1 {[%clk 00:00:45]} {[%emt 00:00:17]} Nh5 {[%clk
00:00:14]} {[%emt 00:00:05]} 40. Bd2 {[%clk 00:00:45]} {[%emt 00:00:06]} Ndf6
{[%clk 00:00:14]} {[%emt 00:00:04]} 41. e5 {[%clk 00:00:41]} {[%emt 00:00:09]}
Nd5 {[%clk 00:00:16]} {[%emt 00:00:04]} 42. c4 {[%clk 00:00:37]} {[%emt
00:00:09]} Nc7 {[%clk 00:00:07]} {[%emt 00:00:14]} 43. Rhg2 {[%clk 00:00:37]}
{[%emt 00:00:03]} Re6 {[%clk 00:00:10]} {[%emt 00:00:03]} 44. cxb5 {[%clk
00:00:26]} {[%emt 00:00:17]} cxb5 {[%clk 00:00:14]} 45. Rc1 {[%clk 00:00:22]}
{[%emt 00:00:09]} Nd5 {[%clk 00:00:17]} {[%emt 00:00:01]} 46. Rf2 {[%clk
00:00:22]} {[%emt 00:00:05]} Re7 {[%clk 00:00:14]} {[%emt 00:00:09]} 47. Rc5
{[%clk 00:00:24]} {[%emt 00:00:03]} Nc7 {[%clk 00:00:15]} {[%emt 00:00:04]} 48.
Rf8 {[%clk 00:00:25]} {[%emt 00:00:04]} Ne6 {[%clk 00:00:14]} {[%emt 00:00:07]}
49. Rfc8 {[%clk 00:00:19]} {[%emt 00:00:09]} Nxc5+ 50. Rxc5 {[%clk 00:00:23]}
Rb7 {[%clk 00:00:17]} {[%emt 00:00:07]} 51. d5 {[%clk 00:00:25]} {[%emt
00:00:02]} Ng7 {[%clk 00:00:21]} {[%emt 00:00:01]} 52. Ke4 {[%clk 00:00:28]}
{[%emt 00:00:03]} Nf5 {[%clk 00:00:17]} {[%emt 00:00:08]} 53. d6 {[%clk
00:00:29]} {[%emt 00:00:04]} Ng3+ {[%clk 00:00:15]} {[%emt 00:00:08]} 54. Kd5
{[%clk 00:00:28]} {[%emt 00:00:06]} Nf5 {[%clk 00:00:08]} {[%emt 00:00:11]} 55.
Rc7+ {[%clk 00:00:27]} {[%emt 00:00:06]} Rxc7 {[%clk 00:00:11]} {[%emt
00:00:03]} 56. dxc7 {[%emt 00:00:02]} Kg7 {[%clk 00:00:08]} {[%emt 00:00:06]}
57. c8=Q {[%clk 00:00:33]} {[%emt 00:00:03]} Ne7+ {[%clk 00:00:11]} {[%emt
00:00:02]} 58. Kc5 {[%clk 00:00:37]} Nxc8 {[%clk 00:00:15]} {[%emt 00:00:02]}
59. Kxb5 {[%clk 00:00:41]} Ne7 {[%clk 00:00:11]} {[%emt 00:00:09]} 60. Kxa4
{[%clk 00:00:45]} {[%emt 00:00:02]} Nc6 {[%clk 00:00:09]} {[%emt 00:00:07]} 61.
e6 {[%clk 00:00:48]} {[%emt 00:00:01]} h5 {[%clk 00:00:13]} {[%emt 00:00:02]}
62. Bg5 {[%clk 00:00:50]} {[%emt 00:00:03]} Nd4 {[%clk 00:00:12]} {[%emt
00:00:06]} 63. e7 {[%clk 00:00:52]} {[%emt 00:00:02]} Kf7 {[%clk 00:00:11]}
{[%emt 00:00:06]} 64. Kb4 {[%clk 00:00:52]} {[%emt 00:00:05]} Nc6+ {[%clk
00:00:08]} {[%emt 00:00:08]} 65. Kc5 {[%clk 00:00:55]} {[%emt 00:00:02]} Nxe7
{[%clk 00:00:12]} {[%emt 00:00:02]} 66. a4 {[%clk 00:00:45]} {[%emt 00:00:14]}
Nf5 {[%clk 00:00:06]} {[%emt 00:00:11]} 67. a5 {[%clk 00:00:48]} {[%emt
00:00:02]} Ke6 {[%clk 00:00:10]} {[%emt 00:00:01]} 68. a6 {[%clk 00:00:48]}
{[%emt 00:00:04]} Nd6 {[%clk 00:00:14]} 69. a7 {[%clk 00:00:38]} {[%emt
00:00:16]} Nc8 {[%clk 00:00:18]} {[%emt 00:00:01]} 70. a8=Q {[%clk 00:00:35]}
{[%emt 00:00:08]} 1-0



[ePGN "0.1;DGT LiveChess/2.2.6"]